bitfinex-derivatives/quotes_BTCF0:USTF0_20251111
["timestamp","ask_amount","ask_price","bid_price","bid_amount"]
[1762866021353,0.41651,104620.0,104610.0,0.09369803]
[1762866021648,0.41651,104620.0,104610.0,0.29059047]
[1762866022444,0.40307,104620.0,104610.0,0.39887787]
[1762866023140,0.3799,104620.0,104610.0,0.41887787]
[1762866023341,0.357,104620.0,104610.0,0.41887787]
[1762866024048,0.357,104620.0,104610.0,0.65783787]
[1762866024645,0.163,104620.0,104610.0,0.63683787]
[1762866024851,0.163,104620.0,104610.0,0.65683787]
[1762866025653,0.16,104620.0,104610.0,0.65683787]
[1762866025845,0.16,104620.0,104610.0,0.65783787]
[1762866026148,0.16,104620.0,104610.0,0.46094543]
[1762866026345,0.16,104620.0,104610.0,0.65783787]
[1762866026557,0.16,104620.0,104610.0,0.41887787]
[1762866026751,0.16,104620.0,104610.0,0.39887787]
[1762866026938,0.16,104620.0,104610.0,0.65683787]
[1762866027142,0.16,104620.0,104610.0,0.65783787]
[1762866027349,0.16,104620.0,104610.0,0.63783787]
[1762866027544,0.16,104620.0,104610.0,0.41887787]
[1762866027746,0.16,104620.0,104610.0,0.63783787]
[1762866027950,0.16,104620.0,104610.0,0.65783787]
[1762866028150,0.16,104620.0,104610.0,0.41887787]
[1762866028348,0.00037251,104630.0,104620.0,0.1479282]
[1762866028547,0.26037251,104630.0,104620.0,0.36701867]
[1762866028747,0.26037251,104630.0,104620.0,0.60597867]
[1762866028947,0.00037251,104630.0,104620.0,0.60597867]
[1762866030249,0.00037251,104630.0,104620.0,0.34701867]
[1762866030454,0.05694,104660.0,104650.0,0.04437]
[1762866030658,0.39694,104660.0,104650.0,0.61470047]
[1762866030855,0.39694,104660.0,104650.0,0.71027127]
[1762866031260,0.34,104660.0,104650.0,0.86628339]
[1762866031450,0.05731242,104670.0,104660.0,0.1399317]
[1762866031649,0.05731242,104670.0,104660.0,0.33902217]
[1762866031650,0.40731242,104670.0,104660.0,0.33902217]
[1762866032345,0.35037242,104670.0,104660.0,0.34698217]
[1762866032550,0.35037242,104670.0,104660.0,0.36698217]
[1762866032956,0.06037242,104670.0,104660.0,0.60582217]
[1762866033452,0.00037242,104670.0,104660.0,0.60882217]
[1762866034251,0.00337242,104670.0,104660.0,0.17008973]
[1762866034555,0.00337242,104670.0,104660.0,0.60582217]
[1762866034764,0.00337242,104670.0,104660.0,0.36698217]
[1762866034944,0.00337242,104670.0,104660.0,0.60582217]
[1762866035147,0.02561242,104670.0,104660.0,0.36698217]
[1762866035353,0.06031242,104670.0,104660.0,0.58582217]
[1762866035558,0.06031242,104670.0,104660.0,0.71018217]
[1762866035756,0.39031242,104670.0,104660.0,0.71018217]
[1762866035955,0.39031242,104670.0,104660.0,0.61462047]
[1762866036346,0.39031242,104670.0,104660.0,0.61562047]
[1762866036546,0.39031242,104670.0,104660.0,0.41872803]
[1762866036744,0.39031242,104670.0,104660.0,0.71018217]
[1762866036945,0.39231242,104670.0,104660.0,0.24346047]
[1762866037152,0.39231242,104670.0,104660.0,0.00219803]
[1762866037455,0.39231242,104670.0,104660.0,0.37331803]
[1762866037858,0.39231242,104670.0,104660.0,0.00219803]
[1762866038057,0.39231242,104670.0,104660.0,0.37327803]
[1762866038461,0.39231242,104670.0,104660.0,0.00219803]
[1762866038657,0.39231242,104670.0,104660.0,0.21655803]
[1762866039557,0.38931242,104670.0,104660.0,0.37327803]
[1762866039757,0.05931242,104670.0,104660.0,0.61454047]
[1762866039960,0.31931242,104670.0,104660.0,0.24346047]
[1762866040153,0.31931242,104670.0,104660.0,0.57013047]
[1762866040552,0.31931242,104670.0,104660.0,0.71006217]
[1762866040752,0.11931242,104670.0,104660.0,0.71006217]
[1762866040956,0.39931242,104670.0,104660.0,0.71006217]
[1762866041360,0.39931242,104670.0,104660.0,0.41760803]
[1762866041571,0.39931242,104670.0,104660.0,0.71006217]
[1762866042262,0.36461242,104670.0,104660.0,0.71874217]
[1762866042462,0.38639242,104670.0,104660.0,0.71874217]
[1762866042867,0.39931242,104670.0,104660.0,0.65574495]
[1762866043163,0.00237242,104670.0,104660.0,0.67574495]
[1762866043957,0.40931242,104670.0,104660.0,0.00219803]
[1762866044157,0.40931242,104670.0,104660.0,0.37319803]
[1762866044353,0.40931242,104670.0,104660.0,0.39530803]
[1762866044667,0.06931242,104670.0,104660.0,0.55146325]
[1762866044860,0.37931242,104670.0,104660.0,0.55146325]
[1762866045065,0.37931242,104670.0,104660.0,0.52920325]
[1762866045362,0.37931242,104670.0,104660.0,0.50709325]
[1762866045865,0.37931242,104670.0,104660.0,0.13609325]
[1762866046066,0.37931242,104670.0,104660.0,0.37315803]
[1762866048756,0.37931242,104670.0,104660.0,0.00219803]
[1762866048957,0.05694,104650.0,104640.0,0.02225314]
[1762866049163,0.40694,104650.0,104640.0,0.22291117]
[1762866049468,0.40694,104650.0,104640.0,0.35680639]
[1762866049668,0.40694,104650.0,104640.0,0.45238629]
[1762866049967,0.40694,104650.0,104640.0,0.35680639]
[1762866050266,0.40694,104650.0,104640.0,0.22491117]
[1762866050469,0.40694,104650.0,104640.0,0.35880639]
[1762866050664,0.40694,104650.0,104640.0,0.00434117]
[1762866050866,0.40694,104650.0,104640.0,0.41371639]
[1762866051569,0.40694,104650.0,104640.0,0.45776639]
[1762866052162,0.40694,104650.0,104640.0,0.41371639]
[1762866052765,0.40694,104650.0,104640.0,0.41271639]
[1762866053162,0.40794,104650.0,104640.0,0.41271639]
[1762866054366,0.40794,104650.0,104640.0,0.45676639]
[1762866055163,0.40794,104650.0,104640.0,0.41271639]
[1762866055566,0.40794,104650.0,104640.0,0.55234629]
[1762866056559,0.40794,104650.0,104640.0,0.70624151]
[1762866056868,0.35794,104650.0,104640.0,0.70624151]
[1762866057072,0.04502,104650.0,104640.0,0.70624151]
[1762866057467,0.04502,104650.0,104640.0,0.68624151]
[1762866057674,0.05769,104650.0,104640.0,0.73624151]
[1762866057972,0.05769,104650.0,104640.0,0.70624151]
[1762866059267,0.05769,104650.0,104640.0,0.68624151]
[1762866059473,0.05769,104650.0,104640.0,0.70624151]
[1762866059674,0.05678646,104650.0,104640.0,0.70624151]
[1762866059876,0.04411646,104650.0,104640.0,0.70624151]
[1762866060274,0.02233646,104650.0,104640.0,0.70624151]
[1762866060575,0.04443646,104650.0,104640.0,0.77480652]
[1762866060774,0.05710646,104650.0,104640.0,0.77480652]
[1762866061884,0.03239406,104650.0,104640.0,0.78852652]
[1762866062277,0.03239406,104650.0,104640.0,0.76852652]
[1762866062479,0.05739,104660.0,104650.0,0.1542508]
[1762866062777,0.39739,104660.0,104650.0,0.29034405]
[1762866063280,0.39739,104660.0,104650.0,0.15644883]
[1762866063477,0.39739,104660.0,104650.0,0.29034405]
[1762866063678,0.38447,104660.0,104650.0,0.29034405]
[1762866063972,0.38647,104660.0,104650.0,0.29034405]
[1762866064371,0.39914,104660.0,104650.0,0.26333826]
[1762866064879,0.39914,104660.0,104650.0,0.18105325]
[1762866065073,0.39914,104660.0,104650.0,0.55185325]
[1762866065480,0.39914,104660.0,104650.0,0.50689325]
[1762866065670,0.39914,104660.0,104650.0,0.13609325]
[1762866065867,0.05714,104650.0,104640.0,0.15655836]
[1762866066077,0.41714,104650.0,104640.0,0.52955639]
[1762866066472,0.41714,104650.0,104640.0,0.39566117]
[1762866066972,0.41714,104650.0,104640.0,0.37414117]
[1762866067280,0.41714,104650.0,104640.0,0.37410117]
[1762866067475,0.41814,104650.0,104640.0,0.37410117]
[1762866067676,0.41814,104650.0,104640.0,0.50799639]
[1762866067876,0.40609077,104650.0,104640.0,0.50799639]
[1762866068182,0.40609077,104650.0,104640.0,0.18219639]
[1762866068382,0.40609077,104650.0,104640.0,0.55295639]
[1762866068680,0.361,104650.0,104640.0,0.79615151]
[1762866068874,0.051,104650.0,104640.0,0.78913662]
[1762866069077,0.41916,104650.0,104640.0,0.18219639]
[1762866069376,0.41916,104650.0,104640.0,0.55295639]
[1762866070180,0.41547,104650.0,104640.0,0.56667639]
[1762866070579,0.41916,104650.0,104640.0,0.55295639]
[1762866070778,0.41916,104650.0,104640.0,0.41906117]
[1762866070975,0.41916,104650.0,104640.0,0.55295639]
[1762866072379,0.41916,104650.0,104640.0,0.56667639]
[1762866072683,0.41547,104650.0,104640.0,0.43278117]
[1762866073181,0.41547,104650.0,104640.0,0.56667639]
[1762866075183,0.41547,104650.0,104640.0,0.66225629]
[1762866075385,0.031,104650.0,104640.0,0.86471652]
[1762866075777,0.41547,104650.0,104640.0,0.72057756]
[1762866075982,0.41547,104650.0,104640.0,0.63533664]
[1762866076285,0.41547,104650.0,104640.0,0.56667639]
[1762866076477,0.04547,104650.0,104640.0,0.66225629]
[1762866076680,0.04547,104650.0,104640.0,0.73092174]
[1762866076881,0.001,104650.0,104640.0,0.73092174]
[1762866077074,0.001,104650.0,104640.0,0.86481696]
[1762866077382,0.02274242,104670.0,104660.0,0.05868]
[1762866077575,0.39274242,104670.0,104660.0,0.6341107]
[1762866077776,0.41484242,104670.0,104660.0,0.6341107]
[1762866078681,0.41684242,104670.0,104660.0,0.6341107]
[1762866078888,0.41784242,104670.0,104660.0,0.6341107]
[1762866079481,0.41784242,104670.0,104660.0,0.56545325]
[1762866081179,0.41784242,104670.0,104660.0,0.43155803]
[1762866081375,0.41784242,104670.0,104660.0,0.19477325]
[1762866081590,0.43133242,104670.0,104660.0,0.00219803]
[1762866081888,0.43133242,104670.0,104660.0,0.39511803]
[1762866082084,0.43133242,104670.0,104660.0,0.41834803]
[1762866082388,0.43133242,104670.0,104660.0,0.04770803]
[1762866082787,0.43133242,104670.0,104660.0,0.41830803]
[1762866085982,0.41784242,104670.0,104660.0,0.06071803]
[1762866086293,0.41784242,104670.0,104660.0,0.56521325]
[1762866088994,0.41784242,104670.0,104660.0,0.64562363]
[1762866089586,0.14784242,104670.0,104660.0,0.64562363]
[1762866089988,0.38784242,104670.0,104660.0,0.64562363]
[1762866091585,0.38784242,104670.0,104660.0,0.52687973]
[1762866091888,0.34337242,104670.0,104660.0,0.80984278]
[1762866092491,0.06000242,104670.0,104660.0,1.17583558]
[1762866092794,0.02500242,104670.0,104660.0,1.19241905]
[1762866092993,0.0561,104700.0,104690.0,0.04551]
[1762866093193,0.0561,104700.0,104690.0,0.52534083]
[1762866093194,0.4061,104700.0,104690.0,0.52534083]
[1762866094195,0.4061,104700.0,104690.0,0.64550363]
[1762866094795,0.4061,104700.0,104690.0,0.64750363]
[1762866094992,0.4061,104700.0,104690.0,0.56704617]
[1762866095187,0.4061,104700.0,104690.0,0.55703617]
[1762866095588,0.4061,104700.0,104690.0,0.42318803]
[1762866096893,0.4061,104700.0,104690.0,0.55703617]
[1762866097689,0.4061,104700.0,104690.0,0.39987803]
[1762866098806,0.4061,104700.0,104690.0,0.42310803]
[1762866099095,0.4061,104700.0,104690.0,0.42306803]
[1762866099297,0.4061,104700.0,104690.0,0.55691617]
[1762866099793,0.4061,104700.0,104690.0,0.42306803]
[1762866100000,0.4061,104700.0,104690.0,0.55691617]
[1762866100199,0.4061,104700.0,104690.0,0.42306803]
[1762866100798,0.4061,104700.0,104690.0,0.37755803]
[1762866100996,0.4061,104700.0,104690.0,0.42306803]
[1762866101396,0.4061,104700.0,104690.0,0.05270803]
[1762866101610,0.4061,104700.0,104690.0,0.42306803]
[1762866101897,0.39261,104700.0,104690.0,0.56448617]
[1762866102295,0.4061,104700.0,104690.0,0.56448617]
[1762866102495,0.37132,104700.0,104690.0,0.56448617]
[1762866102689,0.35,104700.0,104690.0,0.56448617]
[1762866102894,0.4061,104700.0,104690.0,0.42302803]
[1762866103093,0.4061,104700.0,104690.0,0.55687617]
[1762866103693,0.4061,104700.0,104690.0,0.55683617]
[1762866104497,0.4141,104700.0,104690.0,0.55183617]
[1762866104899,0.4141,104700.0,104690.0,0.61432532]
[1762866105992,0.4141,104700.0,104690.0,0.41798803]
[1762866106602,0.4141,104700.0,104690.0,0.00219803]
[1762866106904,0.4141,104700.0,104690.0,0.37243803]
[1762866107303,0.4141,104700.0,104690.0,0.39471803]
[1762866107504,0.4141,104700.0,104690.0,0.41794803]
[1762866107707,0.4141,104700.0,104690.0,0.37243803]
[1762866107902,0.0561,104690.0,104680.0,0.00014314]
[1762866108101,0.4161,104690.0,104680.0,0.37254117]
[1762866108310,0.4161,104690.0,104680.0,0.41805117]
[1762866109210,0.4191,104690.0,104680.0,0.41805117]
[1762866109904,0.4191,104690.0,104680.0,0.00014314]
[1762866110598,0.05564,104680.0,104670.0,0.3702]
[1762866110799,0.22564,104680.0,104670.0,0.37239803]
[1762866111108,0.22564,104680.0,104670.0,0.39464803]
[1762866111595,0.22564,104680.0,104670.0,0.37239803]
[1762866111801,0.22964,104680.0,104670.0,0.37239803]
[1762866112607,0.22964,104680.0,104670.0,0.00219803]
[1762866112804,0.05564,104670.0,104660.0,0.41404314]
[1762866113108,0.10564,104670.0,104660.0,0.41624117]
[1762866114407,0.10664,104670.0,104660.0,0.00234117]
[1762866114601,0.31664,104670.0,104660.0,0.00234117]
[1762866115508,0.31564,104670.0,104660.0,0.00234117]
[1762866115705,0.31764,104670.0,104660.0,0.25603846]
[1762866115900,0.1049,104670.0,104660.0,0.25603846]
[1762866116619,0.1049,104670.0,104660.0,0.42021281]
[1762866116806,0.08576,104670.0,104660.0,0.42021281]
[1762866117011,0.064,104670.0,104660.0,0.42021281]
[1762866117311,0.063,104670.0,104660.0,0.42021281]
[1762866117703,0.061,104670.0,104660.0,0.42021281]
[1762866119305,0.061,104670.0,104660.0,0.35160016]
[1762866120507,0.061,104670.0,104660.0,0.43684108]
[1762866120809,0.05669314,104690.0,104670.0,0.0955467]
[1762866121007,0.38669314,104690.0,104680.0,0.6372244]
[1762866122708,0.38669314,104690.0,104680.0,0.7327678]
[1762866122914,0.36434314,104690.0,104680.0,0.6372244]
[1762866123115,0.36634314,104690.0,104680.0,0.7327678]
[1762866123508,0.36834314,104690.0,104680.0,0.7327678]
[1762866123911,0.33214314,104690.0,104680.0,0.7327678]
[1762866124107,0.33314314,104690.0,104680.0,0.7527678]
[1762866124315,0.33614314,104690.0,104680.0,0.76991007]
[1762866124905,0.33614314,104690.0,104680.0,1.00871007]
[1762866125114,0.13614314,104690.0,104680.0,0.68419872]
[1762866125606,0.13614314,104690.0,104680.0,0.76991007]
[1762866126419,0.13614314,104690.0,104680.0,1.40871007]
[1762866126619,3.14e-06,104690.0,104680.0,1.26543473]
[1762866126917,3.14e-06,104690.0,104680.0,1.41852338]
[1762866127312,3.14e-06,104690.0,104680.0,1.50416914]
[1762866128316,0.05677919,104710.0,104700.0,0.19633729]
[1762866128522,0.23677919,104710.0,104700.0,0.63698367]
[1762866129312,0.23677919,104710.0,104700.0,0.07068638]
[1762866129618,0.23677919,104710.0,104700.0,0.63698367]
[1762866129918,0.23677919,104710.0,104700.0,0.63998367]
[1762866130120,0.19312919,104710.0,104700.0,0.73550887]
[1762866130317,0.21442919,104710.0,104700.0,0.75550887]
[1762866130513,0.23677919,104710.0,104700.0,0.00519803]
[1762866130724,0.05655,104700.0,104690.0,0.00014314]
[1762866131018,0.12655,104700.0,104690.0,0.00234117]
[1762866131214,0.05655,104670.0,104660.0,0.26482564]
[1762866131420,0.05874803,104670.0,104660.0,0.73104001]
[1762866131625,0.05874803,104670.0,104660.0,0.63547831]
[1762866131920,0.05874803,104670.0,104660.0,0.63543831]
[1762866132117,0.05874803,104670.0,104660.0,0.06922102]
[1762866132319,0.05874803,104670.0,104660.0,0.26555831]
[1762866132516,0.05874803,104670.0,104660.0,0.37061267]
[1762866132711,0.05874803,104670.0,104660.0,0.00073267]
[1762866132911,0.05874803,104670.0,104660.0,0.31045267]
[1762866133523,0.05874803,104670.0,104660.0,0.00073267]
[1762866134121,0.05974803,104670.0,104660.0,0.00173267]
[1762866134518,0.04365,104660.0,104650.0,0.17674314]
[1762866134711,0.04584803,104660.0,104650.0,0.17747581]
[1762866134916,0.04584803,104660.0,104650.0,0.3738131]
[1762866136124,0.05874803,104660.0,104650.0,0.00087581]
[1762866136429,0.25874803,104660.0,104650.0,0.00087581]
[1762866137325,0.25974803,104660.0,104650.0,0.00087581]
[1762866137622,0.26174803,104660.0,104650.0,0.1972131]
[1762866137827,0.26074803,104660.0,104650.0,0.1972131]
[1762866138125,0.26274803,104660.0,104650.0,0.00087581]
[1762866138327,0.26374803,104660.0,104650.0,0.00087581]
[1762866138815,0.26274803,104660.0,104650.0,0.00087581]
[1762866139022,0.26374803,104660.0,104650.0,0.00087581]
[1762866139420,0.26174803,104660.0,104650.0,0.00014314]
[1762866140518,0.26174803,104660.0,104650.0,0.00087581]
[1762866143220,0.26174803,104660.0,104650.0,0.1972131]
[1762866143427,0.26174803,104660.0,104650.0,0.5671331]
[1762866143622,0.06174803,104660.0,104650.0,0.5671331]
[1762866143826,0.07174803,104660.0,104650.0,0.5671331]
[1762866144533,0.07174803,104660.0,104650.0,0.6627039]
[1762866144725,0.07174803,104660.0,104650.0,0.5671331]
[1762866145536,0.07174803,104660.0,104650.0,0.37079581]
[1762866145728,0.07174803,104660.0,104650.0,0.5671331]
[1762866145927,0.07174803,104660.0,104650.0,0.00087581]
[1762866146925,0.25174803,104660.0,104650.0,0.00087581]
[1762866149828,0.25174803,104660.0,104650.0,0.1972131]
[1762866150928,0.25074803,104660.0,104650.0,0.1972131]
[1762866151635,0.24874803,104660.0,104650.0,0.1972131]
[1762866151938,0.24974803,104660.0,104650.0,0.00087581]
[1762866152830,0.24874803,104660.0,104650.0,0.00087581]
[1762866153134,0.25074803,104660.0,104650.0,0.00087581]
[1762866154140,0.25174803,104660.0,104650.0,0.00087581]
[1762866154830,0.25074803,104660.0,104650.0,0.00087581]
[1762866155140,0.24874803,104660.0,104650.0,0.00087581]
[1762866155340,0.24974803,104660.0,104650.0,0.00087581]
[1762866156128,0.24874803,104660.0,104650.0,0.00087581]
[1762866156334,0.25074803,104660.0,104650.0,0.00087581]
[1762866157340,0.25074803,104660.0,104650.0,0.1972131]
[1762866158041,0.24874803,104660.0,104650.0,0.1972131]
[1762866158240,0.24974803,104660.0,104650.0,0.1972131]
[1762866158844,0.24874803,104660.0,104650.0,0.1972131]
[1762866159147,0.24974803,104660.0,104650.0,0.1972131]
[1762866159845,0.24974803,104660.0,104650.0,0.00087581]
[1762866160143,0.24874803,104660.0,104650.0,0.00087581]
[1762866160338,0.24974803,104660.0,104650.0,0.00087581]
[1762866160846,0.05929,104650.0,104640.0,0.36996534]
[1762866161034,0.06148803,104650.0,104640.0,0.37069801]
[1762866161230,0.06148803,104650.0,104640.0,0.00081801]
[1762866161744,0.06148803,104650.0,104640.0,0.06930636]
[1762866162637,0.06248803,104650.0,104640.0,0.06930636]
[1762866164243,0.03921803,104650.0,104630.0,0.06887042]
[1762866164441,0.05929,104640.0,104630.0,0.06985703]
[1762866164741,0.06148803,104640.0,104630.0,0.06912436]
[1762866164947,0.06148803,104640.0,104630.0,0.00111474]
[1762866165338,0.06156568,104640.0,104630.0,0.00111474]
[1762866166645,0.06156568,104640.0,104630.0,0.13517867]
[1762866166848,0.06156568,104640.0,104630.0,0.60060777]
[1762866167150,0.06156568,104640.0,104630.0,0.57376096]
[1762866168146,0.06156568,104640.0,104630.0,0.66935006]
[1762866168346,0.06156568,104640.0,104630.0,0.57376096]
[1762866170450,0.06156568,104640.0,104630.0,0.66935006]
[1762866171448,0.06156568,104640.0,104630.0,0.57376096]
[1762866172238,0.06156568,104640.0,104630.0,0.66935006]
[1762866172650,7.765e-05,104640.0,104630.0,0.60060777]
[1762866172846,7.765e-05,104640.0,104630.0,0.68621821]
[1762866173450,0.01404765,104640.0,104630.0,0.68621821]
[1762866173754,0.03684765,104640.0,104630.0,0.55215428]
[1762866173945,0.03684765,104640.0,104630.0,0.68721821]
[1762866174645,0.06008765,104640.0,104630.0,0.68821821]
[1762866175353,0.06228568,104640.0,104630.0,0.68821821]
[1762866175653,0.00227568,104640.0,104630.0,0.82228214]
[1762866176153,0.00227568,104640.0,104630.0,0.92713821]
[1762866176352,0.00227568,104640.0,104630.0,0.68821821]
[1762866176554,7.765e-05,104640.0,104630.0,0.82228214]
[1762866176852,7.765e-05,104640.0,104630.0,0.85600899]
[1762866177255,7.765e-05,104640.0,104630.0,0.72194506]
[1762866180243,7.765e-05,104640.0,104630.0,1.11492899]
[1762866180447,0.05713314,104660.0,104640.0,0.1911416]
[1762866180642,0.11933117,104660.0,104650.0,0.66880067]
[1762866181448,0.11933117,104660.0,104650.0,0.57322987]
[1762866181649,0.11933117,104660.0,104650.0,0.66880067]
[1762866182654,0.11933117,104660.0,104650.0,0.57322987]
[1762866182855,0.12033117,104660.0,104650.0,0.66880067]
[1762866183749,0.0129,104670.0,104660.0,0.0955617]
[1762866183951,0.02,104670.0,104660.0,0.31619989]
[1762866184169,0.05806,104680.0,104660.0,0.41176159]
[1762866184456,0.21025803,104680.0,104670.0,0.36972]
[1762866184648,0.21025803,104680.0,104670.0,0.5045166]
[1762866185451,0.21025803,104680.0,104670.0,0.5044766]
[1762866186157,0.21025803,104680.0,104670.0,0.1347966]
[1762866186359,0.21025803,104680.0,104670.0,0.6000292]
[1762866186756,0.21025803,104680.0,104670.0,0.5044766]
[1762866188161,0.21125803,104680.0,104670.0,0.5044766]
[1762866188356,0.21125803,104680.0,104670.0,0.6000292]
[1762866188558,0.21125803,104680.0,104670.0,0.5044766]
[1762866189256,0.21125803,104680.0,104670.0,0.00073267]
[1762866190161,0.21125803,104680.0,104670.0,0.1347966]
[1762866190453,0.21125803,104680.0,104670.0,0.00073267]
[1762866190660,0.36125803,104680.0,104670.0,0.00073267]
[1762866192356,0.05729,104670.0,104660.0,0.50380707]
[1762866192562,0.11948803,104670.0,104660.0,0.50453974]
[1762866196364,0.11948803,104670.0,104660.0,0.57315063]
[1762866196564,0.11948803,104670.0,104660.0,0.66871233]
[1762866196865,0.11948803,104670.0,104660.0,0.7489282]
[1762866197072,0.11729,104670.0,104660.0,0.78745721]
[1762866197760,0.11729,104670.0,104660.0,0.8732988]
[1762866197761,0.11948803,104670.0,104660.0,0.8732988]
[1762866197957,0.11948803,104670.0,104660.0,0.58475561]
[1762866198157,0.11948803,104670.0,104660.0,0.65333509]
[1762866198663,0.11948803,104670.0,104660.0,0.74889679]
[1762866199165,0.11948803,104670.0,104660.0,0.39087499]
[1762866199362,0.11948803,104670.0,104660.0,0.43897529]
[1762866199554,0.11948803,104670.0,104660.0,0.65325509]
[1762866200765,0.12048803,104670.0,104660.0,0.65325509]
[1762866206972,0.12048803,104670.0,104660.0,0.58467561]
[1762866207575,0.12048803,104670.0,104660.0,0.58459561]
[1762866207968,0.12048803,104670.0,104660.0,0.21515561]
[1762866208265,0.12048803,104670.0,104660.0,0.58455561]
[1762866208674,0.12048803,104670.0,104660.0,0.21515561]
[1762866208872,0.12048803,104670.0,104660.0,0.47741571]
[1762866209577,0.12048803,104670.0,104660.0,0.10801571]
[1762866209872,0.12048803,104670.0,104660.0,0.17672139]
[1762866210074,0.12048803,104670.0,104660.0,0.10801571]
[1762866213278,0.12048803,104670.0,104660.0,0.21515561]
[1762866214070,0.28048803,104670.0,104660.0,0.10801571]
[1762866214979,0.28048803,104670.0,104660.0,0.21515561]
[1762866215985,0.28048803,104670.0,104660.0,0.10801571]
[1762866216478,0.28048803,104670.0,104660.0,0.21515561]
[1762866217477,0.78762793,104670.0,104660.0,0.00014314]
[1762866217783,0.38762793,104670.0,104660.0,0.00014314]
[1762866217974,0.28048803,104670.0,104660.0,0.10728304]
[1762866218174,0.28048803,104670.0,104660.0,0.10801571]
[1762866218681,0.28048803,104670.0,104660.0,0.00087581]
[1762866218985,0.28048803,104670.0,104660.0,0.10801571]
[1762866219576,0.38762793,104670.0,104660.0,0.10801571]
[1762866219977,0.38762793,104670.0,104660.0,0.10728304]
[1762866220179,0.05962,104660.0,104650.0,0.17584558]
[1762866220380,0.18181803,104660.0,104650.0,0.17657825]
[1762866220683,0.18181803,104660.0,104650.0,0.06943835]
[1762866220883,0.18181803,104660.0,104650.0,0.28371815]
[1762866223578,0.18181803,104660.0,104650.0,0.21501247]
[1762866223778,0.18181803,104660.0,104650.0,0.28371815]
[1762866224088,0.18181803,104660.0,104650.0,0.31058327]
[1762866224788,0.18181803,104660.0,104650.0,0.21501247]
[1762866225690,0.18181803,104660.0,104650.0,0.37928895]
[1762866225895,0.18181803,104660.0,104650.0,0.28371815]
[1762866226092,0.18181803,104660.0,104650.0,0.17657825]
[1762866226990,0.18181803,104660.0,104650.0,0.17660963]
[1762866230295,0.18181803,104660.0,104650.0,0.27218043]
[1762866230690,0.18181803,104660.0,104650.0,0.20347475]
[1762866230997,0.18181803,104660.0,104650.0,0.28931634]
[1762866234102,0.18181803,104660.0,104650.0,0.20347475]
[1762866234690,0.13598803,104660.0,104650.0,0.20347475]
[1762866235500,0.15779803,104660.0,104650.0,0.20347475]
[1762866236392,0.15779803,104660.0,104650.0,0.28931634]
[1762866236594,0.15779803,104660.0,104650.0,0.27221839]
[1762866236793,0.13598803,104660.0,104650.0,0.27221839]
[1762866237493,0.15889803,104660.0,104650.0,0.27221839]
[1762866238089,0.13598803,104660.0,104650.0,0.27221839]
[1762866239501,0.15889803,104660.0,104650.0,0.27321839]
[1762866239694,0.18071803,104660.0,104650.0,0.27321839]
[1762866239894,0.15889803,104660.0,104650.0,0.27321839]
[1762866240302,0.15889803,104660.0,104650.0,0.27221839]
[1762866240993,0.18071803,104660.0,104650.0,0.27221839]
[1762866241192,0.18071803,104660.0,104650.0,0.17664759]
[1762866241393,0.18071803,104660.0,104650.0,0.64125839]
[1762866241599,0.18071803,104660.0,104650.0,0.54568759]
[1762866242604,0.18071803,104660.0,104650.0,0.64125839]
[1762866246800,0.18071803,104660.0,104650.0,0.57251475]
[1762866247696,0.18071803,104660.0,104650.0,0.47694395]
[1762866249102,0.18071803,104660.0,104650.0,0.10790395]
[1762866249303,0.18071803,104660.0,104650.0,0.47682395]
[1762866249913,0.18071803,104660.0,104650.0,0.54556975]
[1762866251710,0.18071803,104660.0,104650.0,0.17664975]
[1762866251910,0.18071803,104660.0,104650.0,0.54552975]
[1762866252207,0.18171803,104660.0,104650.0,0.54552975]
[1762866254214,0.18171803,104660.0,104650.0,0.64110055]
[1762866254415,0.18171803,104660.0,104650.0,0.57235475]
[1762866255014,0.18171803,104660.0,104650.0,0.47678395]
[1762866255214,0.18171803,104660.0,104650.0,0.57235475]
[1762866255418,0.18071803,104660.0,104650.0,0.64111856]
[1762866256216,0.18071803,104660.0,104650.0,0.54554776]
[1762866256517,0.18071803,104660.0,104650.0,0.64111856]
[1762866258017,0.15889803,104660.0,104650.0,0.64111856]
[1762866258210,0.18071803,104660.0,104650.0,0.54554776]
[1762866258410,0.18071803,104660.0,104650.0,0.64111856]
[1762866259425,0.15889803,104660.0,104650.0,0.66111856]
[1762866259808,0.12,104660.0,104650.0,0.76828984]
[1762866260118,0.00014314,104670.0,104660.0,0.0955617]
[1762866260320,0.11014314,104670.0,104660.0,0.33063693]
[1762866261223,0.11014314,104670.0,104660.0,0.41647852]
[1762866265122,0.11014314,104670.0,104660.0,0.68647852]
[1762866267718,0.0132,104690.0,104680.0,0.0955434]
[1762866267919,0.27539803,104690.0,104680.0,0.76790572]
[1762866268110,0.27539803,104690.0,104680.0,0.66073444]
[1762866268928,0.30045803,104690.0,104680.0,0.66073444]
[1762866269216,0.32258803,104690.0,104680.0,0.66073444]
[1762866269422,0.32258803,104690.0,104680.0,0.56519104]
[1762866269720,0.32258803,104690.0,104680.0,0.47650395]
[1762866270611,0.04419,104680.0,104670.0,0.00014314]
[1762866270816,0.05733,104660.0,104650.0,0.16936]
[1762866271016,0.12952803,104660.0,104650.0,0.16936]
[1762866271217,0.40952803,104660.0,104650.0,0.22723]
[1762866271612,0.15952803,104660.0,104650.0,0.33440128]
[1762866272524,0.14638803,104660.0,104650.0,0.33440128]
[1762866273618,0.14638803,104660.0,104650.0,0.33540128]
[1762866274023,0.14738803,104660.0,104650.0,0.33540128]
[1762866274221,0.39738803,104660.0,104650.0,0.33440128]
[1762866274425,0.39838803,104660.0,104650.0,0.33440128]
[1762866284031,0.35419803,104660.0,104650.0,0.42997208]
[1762866285136,0.35219803,104660.0,104650.0,0.42997208]
[1762866285321,0.35219803,104660.0,104650.0,0.33440128]
[1762866285522,0.37525803,104660.0,104650.0,0.33440128]
[1762866286241,0.39638803,104660.0,104650.0,0.33440128]
[1762866288736,0.39638803,104660.0,104650.0,0.42997208]
[1762866289033,0.37525803,104660.0,104650.0,0.44154246]
[1762866289234,0.39638803,104660.0,104650.0,0.44154246]
[1762866290029,0.40952803,104660.0,104650.0,0.16502623]
[1762866290236,0.51668426,104660.0,104650.0,0.53342623]
[1762866290734,0.40952803,104660.0,104650.0,0.53342623]
[1762866292427,0.39638803,104660.0,104650.0,0.53342623]
[1762866293437,0.40952803,104660.0,104650.0,0.53342623]
[1762866293632,0.40952803,104660.0,104650.0,0.16502623]
[1762866293939,0.40952803,104660.0,104650.0,0.53338623]
[1762866295030,0.41052803,104660.0,104650.0,0.53338623]
[1762866295733,0.39738803,104660.0,104650.0,0.53338623]
[1762866296334,0.39838803,104660.0,104650.0,0.53338623]
[1762866297131,0.39838803,104660.0,104650.0,0.73611326]
[1762866297132,0.35419803,104660.0,104650.0,0.73611326]
[1762866297832,0.06419803,104660.0,104650.0,0.73611326]
[1762866298035,0.06419803,104660.0,104650.0,0.80935452]